bitfinex-derivatives/quotes_BTCF0:USTF0_20241029
["timestamp","ask_amount","ask_price","bid_price","bid_amount"]
[1730224412841,0.00206435,72697.0,72696.0,0.20090785]
[1730224413438,0.068781,72706.0,72696.0,0.58376678]
[1730224413644,1.5,72708.0,72707.0,0.068779]
[1730224413645,0.00072,72708.0,72707.0,0.068779]
[1730224413837,0.02419637,72709.0,72708.0,0.068778]
[1730224414141,0.00206352,72719.0,72708.0,0.25051015]
[1730224414142,1.5,72713.0,72708.0,0.25051015]
[1730224414443,0.00206352,72719.0,72717.0,0.068769]
[1730224414639,0.00206352,72719.0,72718.0,0.31624946]
[1730224414841,0.068764,72724.0,72718.0,0.60828046]
[1730224415034,0.0016,72727.0,72723.0,0.13211885]
[1730224415344,0.0016,72727.0,72726.0,0.45679712]
[1730224415536,0.0016,72727.0,72726.0,0.47616161]
[1730224416235,0.0016,72727.0,72726.0,0.58132161]
[1730224416536,0.0016,72727.0,72726.0,0.6053276]
[1730224417535,0.0016,72727.0,72726.0,0.73744645]
[1730224418739,0.0016,72727.0,72726.0,0.73587355]
[1730224419044,0.068759,72728.0,72726.0,0.73587355]
[1730224419238,0.068759,72728.0,72727.0,0.11378871]
[1730224420541,0.068759,72728.0,72726.0,0.62344484]
[1730224420743,0.068759,72728.0,72726.0,0.62208484]
[1730224424549,0.06876,72727.0,72726.0,0.51692484]
[1730224424747,0.06876,72727.0,72726.0,0.62204484]
[1730224433448,1.5,72737.0,72726.0,0.62204484]
[1730224433652,1.5,72737.0,72736.0,0.13211885]
[1730224434456,0.068749,72739.0,72736.0,0.13211885]
[1730224434753,0.06875,72738.0,72736.0,0.13211885]
[1730224434958,1.5,72741.0,72737.0,0.23623885]
[1730224435155,1.568747,72741.0,72740.0,0.3608]
[1730224435361,0.00206288,72742.0,72741.0,0.068747]
[1730224435553,0.00206288,72742.0,72741.0,0.30456585]
[1730224436252,0.00206288,72742.0,72741.0,0.71696585]
[1730224436560,0.00206203,72763.0,72755.0,0.068733]
[1730224436757,0.06873,72759.0,72757.0,0.3608]
[1730224436959,0.06873,72759.0,72758.0,0.10412]
[1730224437260,0.06873,72759.0,72758.0,0.23623885]
[1730224437654,0.06873,72759.0,72758.0,0.13211885]
[1730224437855,0.06873,72759.0,72758.0,0.23623885]
[1730224438753,0.06873,72759.0,72758.0,0.13211885]
[1730224438960,0.06873,72759.0,72758.0,0.23623885]
[1730224439164,1.50072,72761.0,72758.0,0.3683577]
[1730224439459,0.00206203,72763.0,72758.0,0.3683577]
[1730224439460,0.00206203,72763.0,72761.0,0.068728]
[1730224439654,0.00206203,72763.0,72761.0,0.20084685]
[1730224439855,0.00206203,72763.0,72761.0,0.61316685]
[1730224440055,0.00206203,72763.0,72761.0,0.13211885]
[1730224440250,0.070327,72762.0,72761.0,0.23623885]
[1730224441564,0.0016,72762.0,72761.0,0.23623885]
[1730224441954,0.070327,72762.0,72761.0,0.13211885]
[1730224442156,0.0016,72762.0,72761.0,0.23619885]
[1730224443764,0.0016,72762.0,72761.0,0.30492685]
[1730224444266,0.070327,72762.0,72761.0,0.23619885]
[1730224445857,0.0016,72762.0,72761.0,0.30492685]
[1730224446261,0.0016,72762.0,72761.0,0.4370457]
[1730224446456,0.0016,72762.0,72761.0,0.30492685]
[1730224447459,0.0016,72762.0,72761.0,0.20084685]
[1730224447655,0.0016,72762.0,72761.0,0.13211885]
[1730224447963,0.0016,72762.0,72761.0,0.30492685]
[1730224450956,0.03525812,72762.0,72761.0,0.20084685]
[1730224451265,0.03525812,72762.0,72761.0,0.22272954]
[1730224452362,1.5,72774.0,72761.0,0.22272954]
[1730224452363,0.3608,72794.0,72761.0,0.64692039]
[1730224452568,0.068713,72778.0,72776.0,0.49291885]
[1730224452763,0.03571251,72777.0,72776.0,0.59699885]
[1730224454665,0.03571251,72777.0,72776.0,0.66571285]
[1730224455561,0.03365064,72777.0,72776.0,0.77061285]
[1730224455759,0.03365064,72777.0,72776.0,1.18285285]
[1730224455961,0.068707,72783.0,72779.0,0.06871]
[1730224456162,0.03364907,72782.0,72776.0,0.57114]
[1730224456469,0.03364907,72781.0,72780.0,0.06871]
[1730224457468,0.03364907,72781.0,72780.0,0.17279]
[1730224458062,0.03364907,72781.0,72780.0,0.30490885]
[1730224458262,0.068709,72781.0,72780.0,0.13211885]
[1730224458458,0.10239289,72781.0,72780.0,0.23615885]
[1730224458663,0.068709,72781.0,72780.0,0.23615885]
[1730224458868,0.068709,72781.0,72780.0,0.13211885]
[1730224459865,0.068709,72781.0,72780.0,0.23615885]
[1730224460662,0.068709,72781.0,72780.0,0.13211885]
[1730224463266,0.068709,72781.0,72777.0,0.36216]
[1730224463460,0.068712,72778.0,72777.0,0.3608]
[1730224463858,1.568712,72778.0,72777.0,0.3608]
[1730224464270,0.068712,72778.0,72777.0,0.3608]
[1730224465869,0.068712,72778.0,72777.0,0.25077972]
[1730224466063,0.1448466,72778.0,72777.0,0.25077972]
[1730224467065,0.068713,72777.0,72776.0,0.02434047]
[1730224467262,0.068714,72776.0,72775.0,0.13211885]
[1730224467469,0.1448486,72776.0,72775.0,0.13211885]
[1730224468265,0.1448486,72776.0,72775.0,0.15714459]
[1730224468876,0.14454968,72776.0,72775.0,0.15714459]
[1730224469572,0.07583568,72776.0,72775.0,0.15714459]
[1730224469876,0.07583568,72776.0,72775.0,0.22585959]
[1730224470669,0.03365341,72776.0,72775.0,0.22585959]
[1730224472272,0.10236741,72776.0,72775.0,0.22585959]
[1730224472469,0.10236741,72776.0,72775.0,0.15714459]
[1730224473271,0.10236713,72776.0,72775.0,0.15714459]
[1730224473675,0.068709,72781.0,72775.0,0.15714459]
[1730224473970,0.3608,72788.0,72787.0,0.068703]
[1730224474175,0.068702,72788.0,72787.0,0.20082185]
[1730224474570,0.068702,72788.0,72787.0,0.13211885]
[1730224474776,0.068704,72786.0,72785.0,0.04112669]
[1730224475479,0.068705,72785.0,72784.0,0.04112669]
[1730224476273,0.068705,72785.0,72783.0,0.104]
[1730224476274,0.068706,72784.0,72783.0,0.104]
[1730224476779,0.13211885,72787.0,72782.0,0.04113472]
[1730224477083,0.068707,72783.0,72782.0,0.04113472]
[1730224477279,0.068708,72782.0,72781.0,0.04113472]
[1730224477483,0.068709,72781.0,72780.0,0.3608]
[1730224477676,0.068709,72781.0,72780.0,0.40194347]
[1730224478382,0.068709,72781.0,72780.0,0.3608]
[1730224479878,0.068709,72781.0,72780.0,0.40195755]
[1730224480286,0.068709,72781.0,72780.0,0.3608]
[1730224480879,0.14453925,72781.0,72780.0,0.25078586]
[1730224482390,0.14453879,72781.0,72780.0,0.25078586]
[1730224486985,0.14453884,72781.0,72780.0,0.25078586]
[1730224488891,0.068709,72781.0,72780.0,0.30545237]
[1730224489185,0.068705,72786.0,72779.0,0.13211885]
[1730224489396,0.068705,72786.0,72785.0,0.04119758]
[1730224491589,0.068705,72786.0,72781.0,0.05493011]
[1730224491590,1.141665,72786.0,72781.0,0.05493011]
[1730224491780,0.06872,72769.0,72768.0,0.05493011]
[1730224491986,0.068721,72768.0,72767.0,0.05493011]
[1730224492182,0.068721,72768.0,72767.0,0.13211885]
[1730224492595,0.068721,72768.0,72767.0,0.18704896]
[1730224493187,0.068721,72768.0,72767.0,0.13211885]
[1730224493591,0.068722,72767.0,72764.0,0.05491834]
[1730224493795,0.068722,72767.0,72760.0,0.3608]
[1730224493796,0.068728,72761.0,72760.0,0.3608]
[1730224493997,0.20084685,72761.0,72760.0,0.3608]
[1730224494397,0.20084685,72761.0,72756.0,0.02420802]
[1730224494592,0.20084685,72761.0,72753.0,0.13211885]
[1730224494899,0.068735,72754.0,72753.0,0.13211885]
[1730224495095,0.068735,72754.0,72753.0,0.15663411]
[1730224496396,0.068735,72754.0,72753.0,0.15863411]
[1730224496602,0.068735,72754.0,72753.0,0.16063411]
[1730224498998,0.068735,72754.0,72753.0,0.02851526]
[1730224500396,0.068735,72754.0,72753.0,0.16063411]
[1730224509022,0.068735,72754.0,72753.0,0.52143411]
[1730224509214,0.068732,72757.0,72753.0,0.59016911]
[1730224509522,0.068732,72757.0,72756.0,0.13211885]
[1730224510017,0.02471927,72768.0,72756.0,0.13211885]
[1730224510321,0.068724,72765.0,72764.0,0.13211885]
[1730224511220,0.07078308,72769.0,72768.0,0.068721]
[1730224511422,0.00206208,72769.0,72768.0,0.20083985]
[1730224511812,1.568709,72781.0,72768.0,0.56859638]
[1730224512013,1.568709,72781.0,72774.0,0.13211885]
[1730224512014,0.068715,72775.0,72774.0,0.13211885]
[1730224512325,0.068715,72775.0,72774.0,0.34071037]
[1730224512716,0.10236928,72775.0,72774.0,0.02209396]
[1730224512918,0.068718,72772.0,72771.0,0.49291885]
[1730224513721,0.14455564,72772.0,72771.0,0.13211885]
[1730224514123,0.14455564,72772.0,72771.0,0.20083685]
[1730224514419,0.19384656,72772.0,72771.0,0.56163685]
[1730224515219,0.12512856,72772.0,72771.0,0.56163685]
[1730224515417,0.07583764,72772.0,72771.0,0.56163685]
[1730224517014,0.03365428,72772.0,72771.0,0.56163685]
[1730224517413,0.03365135,72772.0,72771.0,0.56163685]
[1730224519320,0.068709,72782.0,72771.0,0.56163685]
[1730224519518,0.07582907,72781.0,72779.0,0.06871]
[1730224519723,0.3608,72789.0,72783.0,0.068706]
[1730224519928,0.429501,72789.0,72788.0,0.13211885]
[1730224521523,0.068701,72789.0,72788.0,0.13211885]
[1730224523029,0.068703,72787.0,72786.0,0.3608]
[1730224524828,0.3608,72828.0,72787.0,0.41212]
[1730224525021,0.068668,72825.0,72810.0,0.068682]
[1730224525221,0.068668,72825.0,72824.0,0.49291885]
[1730224525624,0.068668,72825.0,72824.0,0.3608]
[1730224525830,1.568668,72825.0,72824.0,0.3608]
[1730224527326,1.568668,72825.0,72824.0,0.49291885]
[1730224527720,1.69371717,72825.0,72824.0,0.49291885]
[1730224527927,1.69371717,72825.0,72824.0,0.3829638]
[1730224529228,0.07578952,72825.0,72824.0,0.8635918]
[1730224530420,0.07578952,72825.0,72824.0,0.99571065]
[1730224530821,0.07578952,72825.0,72824.0,0.8635918]
[1730224531018,0.0757747,72825.0,72824.0,0.9673918]
[1730224531827,0.0757747,72825.0,72824.0,0.3829638]
[1730224532125,0.1444427,72825.0,72824.0,0.3829638]
[1730224532732,0.0757747,72825.0,72824.0,0.5594318]
[1730224533328,0.0757747,72825.0,72824.0,0.4596318]
[1730224533527,0.1444427,72825.0,72824.0,0.25884495]
[1730224533720,0.27656155,72825.0,72824.0,0.008]
[1730224533924,0.32581984,72825.0,72824.0,0.008]
[1730224534132,0.32581984,72825.0,72824.0,0.00501554]
[1730224534325,1.02991184,72825.0,72812.0,0.23587885]
[1730224534628,0.068679,72813.0,72812.0,0.23587885]
[1730224535137,0.068679,72813.0,72812.0,0.13211885]
[1730224536127,0.068679,72813.0,72809.0,0.02656254]
[1730224536128,0.068682,72810.0,72809.0,0.02656254]
[1730224536337,0.20080085,72810.0,72809.0,0.00206016]
[1730224536533,0.61284085,72810.0,72809.0,0.00206016]
[1730224536933,2.11284085,72810.0,72809.0,0.00206016]
[1730224537234,0.068688,72803.0,72794.0,0.3608]
[1730224537435,0.13211885,72803.0,72787.0,0.20288251]
[1730224537639,0.13211885,72796.0,72787.0,0.13417951]
[1730224537831,0.13211885,72796.0,72788.0,0.10376]
[1730224538230,0.068702,72788.0,72787.0,0.00206066]
[1730224538738,0.068702,72788.0,72780.0,0.49291885]
[1730224539038,0.13211885,72789.0,72780.0,0.49291885]
[1730224539228,0.068709,72782.0,72780.0,0.49291885]
[1730224539630,0.068709,72781.0,72780.0,0.49291885]
[1730224539834,0.068709,72781.0,72780.0,0.51706021]
[1730224541842,0.069709,72781.0,72780.0,0.51706021]
[1730224542045,0.070709,72781.0,72780.0,0.51706021]
[1730224542736,0.164199,72792.0,72780.0,0.69617711]
[1730224542946,0.11607121,72792.0,72786.0,0.0680717]
[1730224543340,0.09294767,72797.0,72786.0,0.0680717]
[1730224543341,0.00072,72810.0,72791.0,0.13211885]
[1730224543637,0.068675,72817.0,72809.0,0.13211885]
[1730224543844,0.07073467,72818.0,72817.0,0.13211885]
[1730224544943,0.068675,72817.0,72816.0,0.42885038]
[1730224545147,0.068675,72817.0,72811.0,0.06805038]
[1730224545344,0.13211885,72814.0,72808.0,0.06805038]
[1730224545541,0.3608,72815.0,72807.0,0.13211885]
[1730224545741,0.068684,72808.0,72807.0,0.20016923]
[1730224546043,0.068684,72808.0,72807.0,0.29562137]
[1730224546343,0.068684,72808.0,72807.0,0.29563053]
[1730224546542,0.068684,72808.0,72807.0,0.22757099]
[1730224546945,0.068684,72808.0,72807.0,0.29625599]
[1730224548247,0.069684,72808.0,72807.0,0.29625599]
[1730224548751,0.001,72808.0,72802.0,0.21377931]
[1730224548942,0.068686,72805.0,72804.0,0.068687]
[1730224549146,0.068686,72805.0,72804.0,0.16422507]
[1730224549543,0.20080485,72805.0,72804.0,0.09553807]
[1730224549737,0.068691,72800.0,72798.0,0.13211885]
[1730224550042,0.068691,72800.0,72799.0,0.25081587]
[1730224550341,0.11085827,72800.0,72799.0,0.25081587]
[1730224550545,0.14449972,72800.0,72799.0,0.25081587]
[1730224551246,0.07580872,72800.0,72799.0,0.25081587]
[1730224551452,0.07580872,72800.0,72799.0,0.34354191]
[1730224551841,0.3608,72835.0,72822.0,0.06867]
[1730224552144,0.00072,72826.0,72825.0,0.068668]
[1730224552349,0.3608,72841.0,72829.0,0.068664]
[1730224552546,0.06866,72833.0,72829.0,0.068664]
[1730224552746,0.068663,72831.0,72822.0,0.1022]
[1730224552949,0.06866,72834.0,72832.0,0.13211885]
[1730224553143,0.06866,72833.0,72832.0,0.13211885]
[1730224553649,0.06866,72833.0,72832.0,0.20077985]
[1730224554652,1.5008,72839.0,72832.0,0.13211885]
[1730224554847,1.5,72839.0,72838.0,0.20077385]
[1730224555042,1.54924839,72839.0,72838.0,0.20077385]
[1730224555248,1.5,72839.0,72838.0,0.20077385]
[1730224555952,0.068653,72841.0,72840.0,0.068653]
[1730224556254,0.068657,72837.0,72836.0,0.068656]
[1730224556747,0.11080214,72837.0,72836.0,0.068656]
[1730224557648,0.11080205,72837.0,72836.0,0.068656]
[1730224557954,0.068657,72837.0,72836.0,0.068656]
[1730224558251,0.069657,72837.0,72836.0,0.068656]
[1730224559252,0.070657,72837.0,72836.0,0.068656]
[1730224559750,0.070657,72837.0,72834.0,0.36172]
[1730224559751,0.002,72837.0,72834.0,0.36172]
[1730224559960,0.068658,72835.0,72834.0,0.3608]
[1730224560155,0.068658,72835.0,72834.0,0.49291885]
[1730224561351,0.069658,72835.0,72834.0,0.49291885]
[1730224561745,0.069658,72835.0,72834.0,0.13211885]
[1730224562554,0.070658,72835.0,72834.0,0.13211885]
[1730224564457,0.54599885,72835.0,72827.0,0.00096]
[1730224564661,0.13211885,72832.0,72821.0,0.13211885]
[1730224564860,0.06867,72823.0,72821.0,0.068671]
[1730224565162,0.07578355,72822.0,72820.0,0.13211885]
[1730224565358,0.04215367,72822.0,72821.0,0.20078985]
[1730224565555,0.07578391,72822.0,72821.0,0.20078985]
[1730224565951,0.07578292,72822.0,72821.0,0.97354985]
[1730224566555,0.07578292,72822.0,72821.0,1.07722985]
[1730224567555,0.03463044,72822.0,72821.0,1.08322985]
[1730224567765,0.04314773,72822.0,72821.0,1.08322985]
[1730224567965,0.03462543,72822.0,72821.0,1.08322985]
[1730224568262,0.03562543,72822.0,72821.0,1.08722985]
[1730224568463,0.002,72822.0,72821.0,1.08722985]
[1730224568765,0.0777725,72822.0,72821.0,1.08722985]
[1730224569159,0.0777725,72822.0,72821.0,0.98354985]
[1730224569469,0.0777725,72822.0,72821.0,1.08722985]
[1730224570564,0.0777725,72822.0,72821.0,1.2193487]
[1730224570766,0.068654,72839.0,72837.0,0.068656]
[1730224571067,0.068656,72838.0,72836.0,0.13211885]
[1730224571665,0.3608,72846.0,72840.0,0.068652]
[1730224571861,0.3608,72846.0,72845.0,0.068649]
[1730224572169,0.0938,72856.0,72848.0,0.068646]
[1730224572367,0.162438,72856.0,72848.0,0.20076485]
[1730224572566,0.0938,72856.0,72848.0,0.20076485]
[1730224572761,0.13211885,72855.0,72847.0,0.3608]
[1730224572965,0.068646,72848.0,72847.0,0.3608]
[1730224573458,0.0938,72856.0,72847.0,0.13211885]
[1730224573663,0.068644,72851.0,72848.0,0.068646]
[1730224574060,0.068641,72853.0,72848.0,0.068646]
[1730224574259,0.068641,72853.0,72841.0,0.068652]
[1730224574260,0.54597909,72849.0,72840.0,0.3608]
[1730224574569,0.068656,72838.0,72834.0,0.09378607]
[1730224574765,0.068658,72835.0,72834.0,0.02512807]
[1730224575076,0.06865,72844.0,72831.0,0.4654]
[1730224575077,0.06866,72833.0,72831.0,0.4654]
[1730224575261,0.06866,72833.0,72831.0,0.46448]
[1730224575664,0.06866,72833.0,72831.0,0.02396166]
[1730224575972,0.06866,72833.0,72830.0,0.23579885]
[1730224575973,0.068662,72831.0,72830.0,0.23579885]
[1730224576167,0.3608,72835.0,72817.0,0.45532]
[1730224576168,0.13211885,72832.0,72822.0,0.30446885]
[1730224576370,0.068665,72828.0,72823.0,0.429469]
[1730224576967,0.068668,72824.0,72823.0,0.3608]
[1730224577279,0.3608,72829.0,72823.0,0.13211885]
[1730224577462,0.3608,72835.0,72828.0,0.13211885]
[1730224577665,0.068664,72830.0,72825.0,0.068667]
[1730224578476,0.068659,72834.0,72824.0,0.068668]
[1730224578774,0.068666,72827.0,72825.0,0.068667]
[1730224579274,0.068666,72827.0,72826.0,0.13211885]
[1730224579973,0.14444516,72827.0,72826.0,0.13211885]
[1730224581371,0.14444516,72827.0,72826.0,0.13411885]
[1730224583375,0.14444516,72827.0,72826.0,0.08772061]
[1730224583676,0.14444516,72827.0,72826.0,0.13411885]
[1730224585978,0.14444516,72827.0,72826.0,0.15906309]
[1730224586874,0.068666,72827.0,72826.0,0.15906309]
[1730224595373,0.068662,72831.0,72826.0,0.15906309]
[1730224595575,0.068662,72831.0,72830.0,0.13211885]
[1730224596574,0.532052,72842.0,72830.0,0.13211885]
[1730224596575,0.068654,72840.0,72838.0,0.068655]
[1730224596777,0.0944,72848.0,72839.0,0.13211885]
[1730224597079,0.068652,72842.0,72840.0,0.068653]
[1730224597472,0.068649,72845.0,72843.0,0.068651]
[1730224597672,0.068638,72857.0,72846.0,0.068647]
[1730224597985,0.068648,72846.0,72842.0,0.3608]
[1730224598174,0.068648,72846.0,72845.0,0.05462923]
[1730224598378,0.068648,72846.0,72845.0,0.05463024]
[1730224598677,0.068648,72846.0,72845.0,0.18674909]
[1730224598873,1.04686555,72858.0,72845.0,0.18674909]
[1730224599078,0.07070524,72849.0,72848.0,0.3608]
[1730224599276,0.00206024,72849.0,72848.0,0.429446]
[1730224600084,0.07070524,72849.0,72848.0,0.48407624]
[1730224600384,0.07070524,72849.0,72848.0,0.3608]
[1730224600587,0.07070524,72849.0,72848.0,0.429446]
[1730224600881,0.07070524,72849.0,72848.0,0.3608]
[1730224601880,0.07070524,72849.0,72848.0,0.359]
[1730224602079,0.14645834,72849.0,72848.0,0.24909778]
[1730224602286,0.0757531,72849.0,72848.0,0.24909778]
[1730224602676,0.0757531,72849.0,72848.0,0.31774378]
[1730224602873,0.0757531,72849.0,72848.0,0.34244708]
[1730224603183,0.1443981,72849.0,72848.0,0.27380108]
[1730224603583,0.1443981,72849.0,72848.0,0.34244708]
[1730224603584,0.0757531,72849.0,72848.0,0.34244708]
[1730224604080,0.0757531,72849.0,72848.0,0.75424708]
[1730224604285,0.0757531,72849.0,72848.0,0.88636593]
[1730224604486,0.0757531,72849.0,72848.0,0.75424708]
[1730224604688,0.0757531,72849.0,72848.0,0.50959993]
[1730224604890,0.0757531,72849.0,72848.0,0.57824593]
[1730224605575,0.0757531,72849.0,72848.0,0.57820593]
[1730224606286,0.07575006,72849.0,72848.0,0.50955993]
[1730224606483,0.07575006,72849.0,72848.0,0.57820593]
[1730224606684,0.03361542,72849.0,72848.0,1.12212478]
[1730224607281,0.03361542,72849.0,72848.0,0.44608708]
[1730224607483,0.03361542,72849.0,72848.0,0.99000593]
[1730224608687,0.6225837,72858.0,72856.0,0.068638]
[1730224608688,0.5539467,72858.0,72856.0,0.068638]
[1730224608886,0.5539467,72858.0,72857.0,0.29745585]
[1730224609084,0.59607769,72858.0,72857.0,0.29745585]
[1730224609993,0.5539467,72858.0,72857.0,0.29745585]
[1730224613586,0.5539467,72858.0,72857.0,0.32153876]
[1730224614887,0.5539467,72858.0,72857.0,0.02408291]
[1730224615093,0.5539467,72858.0,72857.0,0.1036]
[1730224615391,0.6225827,72858.0,72857.0,0.23571885]
[1730224617084,0.6225827,72858.0,72857.0,0.13211885]
[1730224617285,0.6225827,72858.0,72857.0,0.23571885]
[1730224617591,0.5539467,72858.0,72857.0,0.30435585]
[1730224619095,0.5539467,72858.0,72857.0,0.40735585]
[1730224620597,0.5539467,72858.0,72857.0,0.1036]
[1730224620796,0.5539467,72858.0,72857.0,0.172237]
[1730224620993,0.5539467,72858.0,72857.0,0.068637]
[1730224621194,0.5539467,72858.0,72857.0,0.172237]
[1730224622295,0.5539467,72858.0,72857.0,0.068637]
[1730224622603,0.5539467,72858.0,72857.0,0.172237]
[1730224623493,0.5539467,72858.0,72857.0,0.400437]
[1730224624599,0.3608,72877.0,72857.0,1.21656876]
[1730224624795,0.068615,72881.0,72876.0,0.13211885]
[1730224624993,0.068615,72881.0,72880.0,0.13211885]
[1730224625194,0.10222209,72881.0,72880.0,0.13211885]
[1730224625592,0.068615,72881.0,72880.0,0.23571885]
[1730224625799,0.068615,72881.0,72880.0,0.1036]
[1730224626194,0.10222007,72881.0,72880.0,0.1036]
[1730224626398,0.10222007,72881.0,72880.0,0.23571885]
[1730224626805,0.10222007,72881.0,72880.0,0.30433485]
[1730224627198,0.10222007,72881.0,72880.0,0.13211885]
[1730224627396,0.10222007,72881.0,72880.0,0.23567885]
[1730224627797,0.10222007,72881.0,72880.0,0.13211885]
[1730224628005,0.068623,72873.0,72872.0,0.068623]
[1730224629101,0.068623,72873.0,72872.0,0.172183]
[1730224629704,0.068623,72873.0,72872.0,0.19634585]
[1730224629911,0.068616,72880.0,72877.0,0.068618]
[1730224630103,0.03360643,72879.0,72878.0,0.13211885]
[1730224630303,0.03360643,72879.0,72878.0,0.20073585]
[1730224630901,0.10222343,72879.0,72878.0,0.20073585]
[1730224631604,0.10222343,72879.0,72878.0,0.13211885]
[1730224631808,0.10222343,72879.0,72878.0,0.20073685]
[1730224632202,0.068617,72879.0,72878.0,0.13211885]
[1730224633906,0.068617,72879.0,72878.0,0.20073685]
[1730224635310,0.169417,72879.0,72878.0,0.20073685]
[1730224636104,0.0935,72885.0,72879.0,0.068617]
[1730224636307,0.0935,72885.0,72878.0,0.13211885]
[1730224636308,0.162113,72885.0,72884.0,0.20073085]
[1730224640200,0.2378381,72885.0,72884.0,0.09086926]
[1730224640403,0.28705588,72885.0,72884.0,0.09086926]
[1730224640908,0.19355588,72885.0,72884.0,0.09086926]
[1730224641104,0.1443381,72885.0,72884.0,0.09086926]
[1730224641804,0.1443381,72885.0,72882.0,0.02425998]
[1730224642007,0.068622,72873.0,72863.0,0.3608]
[1730224642212,0.068637,72857.0,72856.0,0.3608]
[1730224642511,0.10224134,72857.0,72856.0,0.3608]
[1730224642704,0.10224134,72857.0,72849.0,0.23567885]
[1730224642705,0.0757251,72857.0,72849.0,0.23567885]
[1730224642897,0.068644,72852.0,72851.0,0.068642]
[1730224643098,0.1443691,72852.0,72851.0,0.068642]
[1730224643306,0.068644,72850.0,72849.0,0.13211885]
[1730224643500,0.1919,72854.0,72848.0,0.3608]
[1730224643501,0.0757251,72851.0,72848.0,0.3608]
[1730224643700,0.068645,72849.0,72848.0,0.3608]
[1730224643910,0.1443701,72849.0,72848.0,0.3608]
[1730224645106,0.06865,72843.0,72842.0,0.00205872]
[1730224645411,0.42945,72843.0,72842.0,0.00205872]
[1730224645713,0.5051751,72843.0,72842.0,0.00205872]
[1730224646110,0.63729395,72843.0,72842.0,0.00205872]
[1730224646712,0.63829395,72843.0,72842.0,0.00705872]
[1730224646907,0.5071751,72843.0,72842.0,0.01905872]
[1730224647112,0.43145,72843.0,72842.0,0.01905872]
[1730224647410,0.43145,72843.0,72842.0,0.017]
[1730224648508,0.3628,72843.0,72842.0,0.085651]
[1730224649017,0.3628,72843.0,72842.0,0.189171]
[1730224649501,0.3628,72843.0,72842.0,0.24368036]
[1730224649700,0.3628,72843.0,72842.0,0.189171]
[1730224649905,0.002,72843.0,72842.0,0.189171]
[1730224650702,0.07065,72843.0,72842.0,0.24367314]
[1730224651714,0.07065,72843.0,72842.0,0.09622103]
[1730224652311,0.07065,72843.0,72842.0,0.07150214]
[1730224652511,0.43145,72843.0,72842.0,0.017]
[1730224652917,0.43145,72843.0,72842.0,0.05787134]
[1730224653415,0.43145,72843.0,72842.0,0.017]
[1730224657113,0.43145,72843.0,72842.0,0.085651]
[1730224659712,0.002,72843.0,72842.0,0.085651]
[1730224662219,0.068646,72848.0,72847.0,0.068647]
[1730224662420,0.068646,72848.0,72847.0,0.20076585]
[1730224662609,0.068646,72848.0,72847.0,0.13211885]
[1730224662812,0.068646,72848.0,72847.0,0.20076585]
[1730224663516,0.069646,72848.0,72847.0,0.20876585]
[1730224663712,0.069646,72848.0,72847.0,0.008]
[1730224664422,0.070646,72848.0,72847.0,0.014]
[1730224664917,0.070646,72848.0,72847.0,0.06848117]
[1730224665118,0.070646,72848.0,72847.0,0.09286848]
[1730224665416,0.070646,72848.0,72847.0,0.03838731]
[1730224666715,0.002,72848.0,72847.0,0.23915316]
[1730224667514,0.002,72848.0,72847.0,0.33684648]
[1730224670019,0.070646,72848.0,72847.0,0.33684648]
[1730224670214,0.002,72848.0,72847.0,0.23915316]
[1730224671122,0.070646,72848.0,72847.0,0.17050616]
[1730224671514,0.10426466,72848.0,72847.0,0.17050616]
[1730224673126,0.10326466,72848.0,72847.0,0.23115316]
[1730224674126,0.10226466,72848.0,72847.0,0.22515316]
[1730224675930,0.10226466,72848.0,72847.0,0.15650616]
[1730224676432,0.10226466,72848.0,72847.0,0.02438731]
[1730224676621,0.10226466,72848.0,72835.0,0.36172]
[1730224676622,0.10226558,72848.0,72835.0,0.13211885]
[1730224676816,0.068655,72838.0,72837.0,0.068655]
[1730224677119,0.068657,72836.0,72835.0,0.02508026]
[1730224677325,0.068657,72836.0,72835.0,0.05474257]
[1730224677527,0.068657,72836.0,72828.0,0.10344]
[1730224677528,0.068658,72835.0,72834.0,0.05474257]
[1730224677726,0.068659,72834.0,72833.0,0.12340157]
[1730224677922,0.429459,72834.0,72833.0,0.20077785]
[1730224678318,0.3608,72834.0,72833.0,0.068659]
[1730224679135,0.068655,72839.0,72831.0,0.02453035]
[1730224679430,0.068655,72839.0,72838.0,0.1868304]
[1730224679923,0.068655,72839.0,72838.0,0.2554854]
[1730224680823,0.069655,72839.0,72838.0,0.20077385]
[1730224681021,0.070655,72839.0,72838.0,0.2554854]
[1730224681718,0.070655,72839.0,72838.0,0.20577385]
[1730224681916,0.070655,72839.0,72838.0,0.26045688]
[1730224682128,0.070655,72839.0,72838.0,0.12833803]
[1730224683024,0.070655,72839.0,72838.0,0.073655]
[1730224683222,0.070655,72839.0,72838.0,0.081655]
[1730224684329,0.070655,72839.0,72838.0,0.13633554]
[1730224684831,0.070655,72839.0,72838.0,0.16031386]
[1730224685329,0.070655,72839.0,72838.0,0.27248885]
[1730224686324,0.070655,72839.0,72838.0,0.27250515]
[1730224686635,0.070655,72839.0,72838.0,0.27249359]
[1730224687431,0.070655,72839.0,72838.0,0.17384148]
[1730224688026,0.069655,72839.0,72838.0,0.16884148]
[1730224688235,0.069655,72839.0,72838.0,0.17184148]
[1730224688533,0.068655,72839.0,72838.0,0.16684148]
[1730224689632,0.3608,72840.0,72838.0,0.16684148]
[1730224689827,0.3608,72840.0,72839.0,0.068654]
[1730224690026,0.3608,72840.0,72839.0,0.165854]
[1730224690328,0.3079,72863.0,72841.0,0.068652]
[1730224690529,0.07069166,72864.0,72863.0,0.068632]
[1730224690832,0.068637,72858.0,72852.0,0.3608]
[1730224691037,0.20075985,72853.0,72852.0,0.3608]
[1730224691235,0.068641,72853.0,72852.0,0.3608]
[1730224691932,0.068641,72853.0,72852.0,0.38556254]
[1730224692830,0.068641,72853.0,72852.0,0.02476254]
[1730224693132,0.068642,72852.0,72851.0,0.068642]
[1730224693438,0.068642,72852.0,72851.0,0.0927317]
[1730224694934,0.069642,72852.0,72851.0,0.0240897]
[1730224695234,0.069642,72852.0,72846.0,0.59731885]
[1730224695235,0.068647,72847.0,72846.0,0.4652]
[1730224695437,0.13211885,72847.0,72837.0,0.3618]
[1730224695637,0.429449,72845.0,72837.0,0.3608]
[1730224695834,0.429449,72845.0,72832.0,0.08202112]
[1730224696028,0.06866,72835.0,72834.0,0.068659]